bitfinex-derivatives/quotes_ETHF0:USTF0_20251031
["timestamp","ask_amount","ask_price","bid_price","bid_amount"]
[1761912506316,11.16222425,3874.2,3874.1,4.9032]
[1761912506513,11.16222425,3874.2,3874.1,3.6796]
[1761912506715,11.16222425,3874.2,3874.1,3.2078]
[1761912507109,11.16222425,3874.2,3874.1,4.4191]
[1761912507309,11.16222425,3874.2,3874.1,4.9032]
[1761912507510,11.16222425,3874.2,3874.1,3.6796]
[1761912507910,11.16222425,3874.2,3874.1,3.2078]
[1761912508115,1.73122425,3874.2,3874.1,3.2078]
[1761912508317,8.68372425,3874.2,3874.1,4.9032]
[1761912508522,0.4925,3875.1,3874.4,0.32533]
[1761912508818,1.65325556,3875.5,3875.4,1.2113]
[1761912509012,1.6505,3875.2,3875.1,1.2113]
[1761912509414,1.6505,3875.2,3875.1,1.6954]
[1761912510317,1.6505,3874.9,3874.8,3.6796]
[1761912510515,11.0745,3874.9,3874.8,3.6796]
[1761912510920,11.0745,3874.9,3874.8,4.4191]
[1761912511713,11.0745,3874.9,3874.8,3.6796]
[1761912511920,3.8933,3875.4,3874.8,4.9032]
[1761912512120,0.00275556,3875.5,3875.4,1.6954]
[1761912512308,8.58975556,3875.5,3875.4,1.6954]
[1761912512711,9.08225556,3875.5,3875.4,1.6954]
[1761912513312,10.30565556,3875.5,3875.2,3.2078]
[1761912513520,1.6505,3875.3,3875.2,3.2078]
[1761912513712,1.6505,3875.3,3875.2,3.6796]
[1761912514715,1.6505,3875.3,3875.2,4.4191]
[1761912515029,1.6505,3874.8,3874.7,1.2113]
[1761912515322,11.0695,3874.8,3874.7,1.6954]
[1761912516120,11.0695,3874.8,3874.0,1.28103653]
[1761912516121,1.6505,3874.3,3874.2,4.4191]
[1761912516425,11.0685,3874.3,3874.2,4.9032]
[1761912516822,9.418,3874.3,3874.2,4.9032]
[1761912518319,0.6855,3874.8,3874.2,4.9032]
[1761912518626,7.4425,3874.7,3874.6,4.9032]
[1761912519123,1.6505,3874.7,3874.6,4.9032]
[1761912519519,11.0645,3874.7,3874.6,4.9032]
[1761912519824,11.0645,3874.7,3874.6,3.2078]
[1761912520520,1.6505,3874.3,3874.2,3.2078]
[1761912520721,1.73123754,3874.3,3874.2,3.2078]
[1761912523122,1.73123754,3874.3,3874.2,4.3348]
[1761912523921,0.57163754,3874.3,3874.2,4.8231]
[1761912524118,1.65053754,3874.3,3874.2,4.8231]
[1761912525626,1.65053754,3874.3,3874.2,3.2078]
[1761912527524,1.5698,3873.9,3873.8,4.3351]
[1761912527727,11.05853754,3873.9,3873.8,4.3351]
[1761912528430,9.97963754,3873.9,3873.8,4.8234]
[1761912529627,11.05853754,3873.9,3873.8,4.8234]
[1761912530229,11.05853754,3873.9,3873.8,4.3351]
[1761912530431,11.05853754,3873.9,3873.8,3.6799]
[1761912530628,11.05853754,3873.9,3873.8,4.3351]
[1761912531025,11.05853754,3873.9,3873.8,4.8234]
[1761912533235,11.05853754,3873.9,3873.8,4.3351]
[1761912533634,1.5698,3873.5,3873.4,4.1682]
[1761912533836,11.05353754,3873.5,3873.4,4.1682]
[1761912534336,10.42123754,3873.5,3873.4,4.8234]
[1761912534528,11.05353754,3873.5,3873.4,4.8234]
[1761912534725,11.33723754,3873.5,3873.4,4.8234]
[1761912535425,11.33723754,3873.5,3873.4,3.2078]
[1761912536930,1.5698,3873.1,3873.0,3.21081826]
[1761912537236,11.05153754,3873.1,3873.0,3.21081826]
[1761912537438,11.05153754,3873.1,3873.0,3.68291826]
[1761912537924,11.05153754,3873.1,3873.0,4.33811826]
[1761912538835,10.9708,3873.1,3873.0,3.21081826]
[1761912539138,11.05156392,3873.1,3873.0,3.68291826]
[1761912539630,0.08076392,3873.1,3873.0,5.11301826]
[1761912540027,3.694,3873.2,3873.1,1.6156]
[1761912540330,3.77475221,3873.2,3873.1,42.4156]
[1761912541041,1.5698,3874.3,3874.2,1.6156]
[1761912541228,8.99054495,3874.3,3874.2,1.6156]
[1761912541731,9.47774495,3874.3,3874.2,1.6156]
[1761912541936,1.1232,3875.0,3874.9,1.6156]
[1761912542137,9.8869,3875.0,3874.9,1.6156]
[1761912542640,1.5698,3874.7,3874.6,1.1273]
[1761912543037,1.5698,3874.7,3874.6,1.6156]
[1761912543341,0.4909,3874.7,3874.6,1.6156]
[1761912543640,1.5698,3874.6,3874.5,3.2078]
[1761912543939,0.4909,3874.9,3874.8,1.6156]
[1761912544136,10.6418,3874.9,3874.8,1.6156]
[1761912544642,10.0095,3874.9,3874.8,1.6156]
[1761912544841,9.5629,3874.9,3874.8,1.6156]
[1761912545042,0.4909,3875.2,3875.1,0.4721]
[1761912545238,9.0779,3875.2,3875.1,1.6156]
[1761912545638,10.1568,3875.2,3875.1,1.6156]
[1761912546445,1.8535,3875.0,3874.9,3.2078]
[1761912547250,9.0779,3875.2,3875.1,1.6156]
[1761912547950,10.1568,3875.2,3875.1,1.6156]
[1761912549142,10.1568,3875.2,3874.9,3.2078]
[1761912549344,1.8535,3875.0,3874.9,3.2078]
[1761912551744,1.0872,3875.1,3875.0,1.5949]
[1761912551953,10.9231,3875.1,3875.0,1.5949]
[1761912552443,1.5351,3875.1,3875.0,1.5949]
[1761912552648,10.9211,3875.1,3875.0,1.5949]
[1761912553442,0.28645556,3875.5,3875.4,1.5949]
[1761912553443,1.53785556,3875.5,3875.4,1.5949]
[1761912553648,10.92385556,3875.5,3875.4,1.5949]
[1761912554051,11.00457496,3875.5,3875.4,0.4223]
[1761912554252,11.00457496,3875.5,3875.4,1.1384]
[1761912554562,11.00457496,3875.5,3875.4,1.5949]
[1761912555053,11.00457496,3875.5,3875.4,0.4223]
[1761912555646,1.5351,3875.2,3875.1,1.5949]
[1761912555853,1.6158194,3875.2,3875.1,1.5949]
[1761912558757,0.9448194,3875.2,3875.1,1.5949]
[1761912559256,1.5997194,3875.2,3875.1,1.5949]
[1761912560157,1.5438,3875.0,3874.9,4.3075]
[1761912560351,11.0045194,3875.0,3874.9,4.3075]
[1761912560959,11.2549194,3875.0,3874.9,3.6442]
[1761912561152,11.2549194,3875.0,3874.9,3.2078]
[1761912561549,11.2549194,3875.0,3874.9,4.3075]
[1761912561756,11.0045194,3875.0,3874.9,4.7587]
[1761912561955,11.0045194,3875.0,3874.9,4.3075]
[1761912562155,11.0643194,3875.0,3874.9,3.6442]
[1761912562363,11.0643194,3875.0,3874.9,3.2078]
[1761912563750,11.0643194,3875.0,3874.0,41.0866]
[1761912563751,1.1198,3874.6,3874.5,4.0954]
[1761912563954,11.0005194,3874.6,3874.5,4.0954]
[1761912564153,11.0005194,3874.6,3874.5,3.2078]
[1761912565758,1.5438,3874.1,3874.0,3.2078]
[1761912565959,10.9985194,3874.1,3874.0,3.2078]
[1761912567074,0.6549,3873.9,3873.6,3.6442]
[1761912567268,1.5438,3873.7,3873.6,3.2078]
[1761912567473,1.6245194,3873.7,3873.6,3.2078]
[1761912568480,1.1596194,3873.7,3873.6,4.7587]
[1761912568777,0.5047194,3873.7,3873.6,4.7587]
[1761912568966,9.8767194,3873.7,3873.6,4.7587]
[1761912570071,9.4527194,3873.7,3873.6,4.7587]
[1761912570271,9.4517194,3873.7,3873.6,4.7587]
[1761912571471,10.9955194,3873.7,3873.6,4.7587]
[1761912571776,10.9955194,3873.7,3873.6,3.2078]
[1761912572172,10.9955194,3873.7,3873.6,3.6442]
[1761912572774,0.424,3873.3,3873.2,4.3075]
[1761912572982,10.9935194,3873.3,3873.2,3.2078]
[1761912573781,10.9935194,3873.3,3873.2,4.3075]
[1761912574278,10.9935194,3873.3,3873.2,3.6442]
[1761912575373,1.5438,3873.1,3873.0,0.00301826]
[1761912575580,1.6245194,3873.1,3873.0,0.00301826]
[1761912575986,1.7052,3872.5,3872.4,3.2078]
[1761912576180,11.1529194,3872.5,3872.4,4.3075]
[1761912576481,1.6245194,3872.5,3872.4,4.7587]
[1761912576681,8.8695194,3872.5,3872.4,4.7587]
[1761912576975,8.87195966,3872.5,3872.4,4.76057456]
[1761912577480,9.45015966,3872.5,3872.4,4.76057456]
[1761912578681,10.91005966,3872.5,3872.4,3.64607456]
[1761912578975,11.16855966,3872.5,3872.4,4.22467456]
[1761912579172,10.91005966,3872.5,3872.4,4.22467456]
[1761912580579,10.91005966,3872.5,3872.4,4.63687456]
[1761912581481,11.16455966,3872.5,3872.4,3.20967456]
[1761912581682,11.16455966,3872.5,3872.4,3.62547456]
[1761912581981,10.91005966,3872.5,3872.4,4.66697456]
[1761912582182,9.45015966,3872.5,3872.4,4.66697456]
[1761912582683,9.84515966,3872.5,3872.4,4.66697456]
[1761912583084,10.87505966,3872.5,3872.4,4.66697456]
[1761912583284,10.87505966,3872.5,3872.4,4.25387456]
[1761912583681,10.87505966,3872.5,3872.4,4.66697456]
[1761912584277,11.12955966,3872.5,3872.4,3.62547456]
[1761912584585,11.12955966,3872.5,3872.4,3.20967456]
[1761912585184,11.12955966,3872.5,3872.4,0.00187456]
[1761912586286,11.12955966,3872.5,3871.5,1.0442]
[1761912586287,0.8281,3871.6,3871.5,1.0442]
[1761912586487,10.2698194,3871.6,3871.5,1.0442]
[1761912586783,10.8666194,3871.6,3871.5,1.0442]
[1761912586977,10.8666194,3871.6,3871.5,1.4573]
[1761912587186,10.2698194,3871.6,3871.5,4.91362153]
[1761912587486,0.395,3872.3,3872.2,1.4573]
[1761912587784,9.83578782,3872.3,3872.2,1.4573]
[1761912589486,10.86568782,3872.3,3872.2,1.4573]
[1761912589880,10.86568782,3872.3,3872.2,1.0442]
[1761912590074,10.86568782,3872.3,3872.2,1.4573]
[1761912590275,9.83578782,3872.3,3872.2,1.4573]
[1761912590482,9.43978782,3872.3,3872.2,1.4573]
[1761912591585,9.83478782,3872.3,3872.2,1.4573]
[1761912591977,10.86468782,3872.3,3872.2,1.4573]
[1761912592280,10.26788782,3872.3,3872.2,1.4573]
[1761912593584,10.26588782,3872.3,3872.2,1.4573]
[1761912593978,10.26488782,3872.3,3872.2,1.4573]
[1761912594181,0.90888782,3872.3,3872.2,1.4573]
[1761912594388,10.26388782,3872.3,3872.2,1.4573]
[1761912594585,10.86068782,3872.3,3872.2,1.4573]
[1761912596879,1.4249,3872.1,3872.0,3.2078]
[1761912597080,0.08078782,3872.1,3872.0,4.9112]
[1761912598195,1.29502187,3872.5,3872.4,1.4573]
[1761912598391,4.47,3872.6,3872.5,1.7034]
[1761912598586,4.865,3872.6,3872.5,1.7034]
[1761912599092,5.89787519,3872.6,3872.5,1.4573]
[1761912600492,5.89787519,3872.6,3872.5,1.7034]
[1761912600990,1.42787519,3872.6,3872.5,1.7034]
[1761912601198,0.00297519,3872.6,3872.5,2.36280485]
[1761912601397,0.39797519,3872.6,3872.5,2.36280485]
[1761912601992,1.42787519,3872.6,3872.5,0.4158]
[1761912602191,1.4249,3872.5,3872.4,4.6651]
[1761912607992,0.8281,3872.5,3872.4,4.6651]
[1761912608199,0.00297519,3872.6,3872.5,1.7034]
[1761912608398,9.34697519,3872.6,3872.5,1.7034]
[1761912609098,0.00297519,3872.6,3872.5,1.7034]
[1761912609499,0.00297519,3872.6,3872.5,43.18465904]
[1761912610401,0.08373622,3872.6,3872.5,43.18465904]
[1761912612298,0.08373622,3872.6,3872.5,42.5034]
[1761912614492,1.28549751,3872.8,3872.7,1.3863]
[1761912614704,0.59,3873.8,3873.7,1.3863]
[1761912614705,1.4249,3873.8,3873.7,1.3863]
[1761912614896,6.0579,3873.8,3873.7,0.9636]
[1761912615295,6.0579,3873.8,3873.7,0.4183]
[1761912615611,1.42820503,3873.8,3873.7,0.4183]
[1761912615800,10.76420503,3873.8,3873.7,0.4183]
[1761912616604,1.4249,3873.5,3873.4,3.6261]
[1761912617104,1.4249,3873.5,3873.4,4.1714]
[1761912618302,10.7589,3873.5,3873.4,1.3863]
[1761912621505,10.7589,3873.5,3873.4,4.5941]
[1761912621701,1.29360503,3873.8,3873.4,4.5941]
[1761912621905,1.29360503,3873.8,3873.7,1.2824]
[1761912622103,0.00330503,3873.8,3873.7,1.2824]
[1761912626305,1.28880503,3873.8,3873.7,1.2824]
[1761912626605,1.36954871,3873.8,3873.7,1.2824]
[1761912627102,0.83164871,3873.8,3873.7,1.2824]
[1761912629000,1.2855,3873.5,3873.4,4.1133]
[1761912629208,1.36624368,3873.5,3873.4,4.4902]
[1761912636804,1.2855,3873.2,3873.1,0.9055]
[1761912637002,0.7476,3873.1,3873.0,3.2078]
[1761912637209,1.36624368,3873.1,3873.0,3.2078]
[1761912639214,1.36624368,3873.1,3873.0,4.4902]
[1761912640508,1.36624368,3873.1,3873.0,3.5705]
[1761912640812,1.36624368,3873.1,3873.0,3.2078]
[1761912641309,1.1676,3872.8,3872.7,0.8884]
[1761912641513,1.1825,3872.7,3872.6,3.2078]
[1761912641717,1.1825,3872.7,3871.4,0.9067531]
[1761912641718,1.1825,3872.1,3871.8,3.2078]
[1761912642008,1.1825,3872.5,3872.4,0.7143]
[1761912642220,10.57528498,3872.5,3872.4,0.7143]
[1761912642512,10.4945,3872.5,3872.4,1.2273]
[1761912642707,10.57528455,3872.5,3872.4,1.2273]
[1761912643213,1.26328455,3872.5,3872.4,1.2273]
[1761912643414,10.57528455,3872.5,3872.4,1.2273]
[1761912644012,10.57428455,3872.5,3872.4,1.2273]
[1761912645116,0.08078455,3872.5,3872.4,1.2273]
[1761912645304,7.45478455,3872.5,3872.4,1.2273]
[1761912645505,0.08078455,3872.5,3872.4,1.2273]
[1761912645716,9.38978455,3872.5,3872.4,1.88378644]
[1761912646014,0.08078455,3872.5,3872.4,1.88378644]
[1761912646517,0.08078455,3872.5,3872.4,42.68378644]
[1761912648808,0.08078455,3872.5,3872.4,43.00928644]
[1761912649311,0.76498455,3872.5,3872.4,1.88378644]
[1761912649614,0.08078455,3872.5,3872.4,1.2273]
[1761912650804,1.26328455,3872.5,3872.4,1.2273]
[1761912651009,0.08078455,3872.5,3872.4,1.2273]
[1761912654411,1.1825,3873.6,3873.5,0.7143]
[1761912654616,0.76496491,3873.6,3873.5,1.4374]
[1761912654910,9.73876491,3873.6,3873.5,1.4374]
[1761912655114,0.43676491,3873.6,3873.5,1.4374]
[1761912655310,9.73876491,3873.6,3873.5,1.4374]
[1761912655915,10.56426491,3873.6,3873.5,1.4374]
[1761912656417,1.1825,3873.3,3873.2,0.8687]
[1761912656714,1.1825,3873.3,3873.2,1.2273]
[1761912657716,2.1164,3873.3,3873.2,1.2273]
[1761912658317,0.9339,3873.3,3873.2,1.2273]
[1761912660311,2.1164,3873.3,3873.2,1.2273]
[1761912661115,1.1825,3873.0,3872.9,3.2078]
[1761912661313,1.1825,3873.0,3872.9,3.9221]
[1761912661622,0.6842,3873.0,3872.9,45.2351]
[1761912661822,1.1825,3873.0,3872.9,45.2351]
[1761912662023,10.4785,3873.0,3872.9,4.4351]
[1761912662224,9.9802,3873.0,3872.9,4.4351]
[1761912663129,9.296,3873.0,3872.9,4.4351]
[1761912663336,10.4785,3873.0,3872.9,4.4351]
[1761912663817,9.9802,3873.0,3872.9,4.4351]
[1761912664928,10.4785,3873.0,3872.9,4.4351]
[1761912666629,10.55926276,3873.0,3872.9,4.4351]
[1761912668224,10.06096276,3873.0,3872.9,4.4351]
[1761912668532,10.55926276,3873.0,3872.9,4.4351]
[1761912669922,10.55926276,3873.0,3872.9,3.2078]
[1761912669923,10.76966276,3873.0,3872.9,3.2078]
[1761912670229,1.1825,3872.7,3872.6,0.8687]
[1761912670432,1.26326276,3872.7,3872.6,0.8687]
[1761912670731,1.1825,3872.5,3872.4,4.0765]
[1761912670924,10.55226276,3872.5,3872.4,4.4351]
[1761912671926,10.55227328,3872.5,3872.4,4.4351]
[1761912672126,10.67667328,3872.5,3872.4,3.2078]
[1761912672738,10.67667328,3872.5,3872.4,4.0222]
[1761912672927,0.3552,3872.2,3872.1,0.4856]
[1761912673131,0.3552,3872.2,3872.1,0.8144]
[1761912673132,0.76207328,3872.2,3872.1,0.8144]
[1761912673533,1.24217328,3872.2,3872.1,0.8144]
[1761912674035,1.1614,3872.1,3872.0,3.2078]
[1761912674229,10.52917328,3872.1,3872.0,4.0222]
[1761912674429,10.52917328,3872.1,3872.0,3.2078]
[1761912675338,1.1614,3871.6,3871.5,3.69582153]
[1761912675529,10.52817328,3871.6,3871.5,4.36122153]
[1761912675729,0.08077328,3871.6,3871.5,4.56792153]
[1761912675926,0.2015,3874.0,3872.5,0.3288]
[1761912675927,2.07345202,3872.6,3872.5,0.3288]
[1761912676127,0.3552,3872.1,3872.0,0.3288]
[1761912676332,0.6813,3872.0,3871.9,3.2078]
[1761912676629,1.41578577,3872.0,3871.9,3.2078]
[1761912677027,1.23068577,3872.0,3871.9,4.2542]
[1761912677225,1.41578577,3872.0,3871.9,3.2078]
[1761912678035,1.1119,3871.6,3871.5,3.21022153]
[1761912678233,10.47668577,3871.6,3871.5,3.21022153]
[1761912679730,10.47668577,3871.6,3871.5,0.00242153]
[1761912680339,10.47668577,3871.6,3870.5,0.89135904]
[1761912680340,0.7928,3870.2,3870.1,0.7486]
[1761912680640,9.39708577,3870.2,3870.1,1.0464]
[1761912680829,8.75378577,3870.2,3870.1,1.0464]
[1761912681041,9.36278577,3870.2,3870.1,1.0464]
[1761912681235,0.6433,3869.8,3869.7,0.32284213]
[1761912681536,0.6433,3869.8,3869.7,0.02766605]
[1761912681537,10.47468577,3869.8,3869.7,0.02766605]
[1761912681741,10.47468577,3869.8,3869.7,0.32466605]
[1761912682045,10.47468577,3869.8,3869.7,0.77626605]
[1761912682935,10.47468577,3869.8,3869.7,0.02766605]
[1761912684231,10.3939,3869.8,3869.7,0.02766605]
[1761912686548,10.47473341,3869.8,3869.7,0.02766605]
[1761912686939,3.2078,3870.0,3869.7,1.07406605]
[1761912687148,0.32128979,3870.2,3870.1,1.0464]
[1761912687340,5.24791477,3870.2,3870.1,1.0464]
[1761912687741,10.47491477,3870.2,3870.1,1.0464]
[1761912688246,10.47491477,3870.2,3869.8,40.8]
[1761912688549,0.6433,3869.9,3869.8,40.8]
[1761912688752,0.3191,3869.9,3869.8,0.5948]
[1761912689049,0.3191,3869.8,3869.7,1.07406605]
[1761912689249,9.5991,3869.8,3869.7,41.87406605]
[1761912689749,9.5991,3869.8,3869.7,1.07406605]
[1761912689944,10.3919,3869.8,3869.7,0.02766605]
[1761912690348,10.472734,3869.8,3869.7,0.02766605]
[1761912690947,10.472734,3869.8,3869.7,0.77626605]
[1761912691646,10.472734,3869.8,3869.7,0.02766605]
[1761912693450,0.3242,3869.3,3869.2,0.7486]
[1761912693653,10.00114131,3869.3,3869.2,0.7486]
[1761912693843,10.00114131,3869.3,3869.0,0.7486]
[1761912693844,0.6433,3869.1,3869.0,0.7486]
[1761912694039,1.1119,3869.1,3869.0,0.7486]
[1761912694447,1.1119,3869.1,3869.0,1.23389505]
[1761912694651,0.3191,3869.1,3869.0,1.23389505]
[1761912694956,9.5961,3869.3,3869.2,1.0464]
[1761912695157,9.67693958,3869.3,3869.2,1.0464]
[1761912695351,0.72413958,3869.3,3869.2,1.0464]
[1761912695547,5.64093958,3869.3,3869.2,1.0464]
[1761912695944,5.5601,3869.3,3869.2,1.0464]
[1761912696350,6.3529,3869.3,3869.2,0.7486]
[1761912696545,6.43373716,3869.3,3869.2,0.7486]
[1761912698261,5.32183716,3869.3,3869.2,1.0464]
[1761912698466,6.43373716,3869.3,3869.2,1.0464]
[1761912698958,6.43373716,3869.3,3869.2,0.7486]
[1761912700560,6.43373716,3869.3,3869.2,0.297]
[1761912700961,6.43373716,3869.3,3869.2,0.7926]
[1761912701759,0.08083716,3869.3,3869.2,1.0912]
[1761912702065,1.15683716,3869.3,3869.2,1.0912]
[1761912702451,1.15683716,3869.3,3869.2,0.7926]
[1761912702655,1.076,3869.1,3869.0,0.80069505]
[1761912702863,1.15683716,3869.1,3869.0,0.80069505]
[1761912703968,1.15683716,3869.1,3869.0,1.09929505]
[1761912704357,0.67803716,3869.1,3869.0,1.61317505]
[1761912704563,0.37873716,3869.1,3869.0,1.61317505]
[1761912704861,0.37873716,3869.1,3869.0,1.28739505]
[1761912705061,1.15683716,3869.1,3869.0,1.28739505]
[1761912705256,0.67803716,3869.1,3869.0,1.28739505]
[1761912705654,1.15683716,3869.1,3869.0,1.28739505]
[1761912706265,0.67803716,3869.1,3869.0,1.28739505]
[1761912707465,0.37873716,3869.1,3869.0,1.28739505]
[1761912707661,0.08083716,3869.1,3869.0,1.28739505]
[1761912707869,1.076,3869.7,3869.6,1.0968]
[1761912708065,10.4258369,3869.7,3869.6,1.0968]
[1761912708764,10.4258369,3869.7,3869.6,0.7982]
[1761912710373,9.6477369,3869.7,3869.6,1.0968]
[1761912710673,10.4258369,3869.7,3869.6,1.0968]
[1761912712063,0.0808369,3869.7,3869.6,1.0968]
[1761912712256,0.0808369,3869.7,3869.6,1.77805904]
[1761912712970,0.0808369,3869.7,3869.6,1.0968]
[1761912715370,0.0808369,3869.7,3869.6,1.7805437]
[1761912716175,1.3131369,3869.7,3869.6,1.7805437]
[1761912716367,1.3131369,3869.7,3869.6,1.0968]
[1761912716568,1.0152369,3869.7,3869.6,1.0968]
[1761912717070,1.3131369,3869.7,3869.6,1.0968]
[1761912717378,1.0152369,3869.7,3869.6,1.7805437]
[1761912717668,1.01522134,3869.7,3869.6,1.7805437]
[1761912718064,2.09122134,3869.7,3869.6,1.7805437]
[1761912718377,2.09122134,3869.7,3869.6,1.0968]
[1761912719670,2.09122134,3869.7,3869.6,0.7982]
[1761912720170,10.27622134,3869.7,3869.6,1.0968]
[1761912720364,10.57412134,3869.7,3869.6,1.0968]
[1761912720568,1.01522134,3869.7,3869.6,1.0968]
[1761912721677,2.09122134,3869.7,3869.6,1.0968]
[1761912721881,1.15682134,3869.7,3869.6,1.0968]
[1761912722180,1.15682134,3869.7,3869.6,0.7982]
[1761912722378,1.076,3869.4,3869.3,0.7982]
[1761912722566,1.076,3869.2,3869.1,41.2956]
[1761912722767,0.08082134,3869.2,3869.1,1.0968]
[1761912722971,2.3966,3869.9,3869.8,0.7982]
[1761912723173,0.67803167,3869.9,3869.8,0.6012]
[1761912723373,9.80683167,3869.9,3869.8,0.6012]
[1761912723777,9.80683167,3869.9,3869.8,0.3026]
[1761912724079,1.076,3869.7,3869.6,0.7982]
[1761912724280,1.15683167,3869.7,3869.6,0.7982]
[1761912725977,1.2553,3869.5,3869.4,3.2078]
[1761912726175,10.59213167,3869.5,3869.4,3.2078]
[1761912726474,1.076,3869.3,3869.1,40.8]
[1761912726679,1.15683167,3869.2,3869.1,40.8]
[1761912727379,1.15683167,3869.2,3869.1,0.7982]
[1761912728775,1.076,3869.1,3869.0,3.21029505]
[1761912728983,10.41183167,3869.1,3869.0,3.21029505]
[1761912729178,10.41183167,3869.1,3869.0,4.00849505]
[1761912729681,0.08083167,3869.1,3869.0,4.49519505]
[1761912729882,9.254,3869.6,3869.5,1.2849]
[1761912730081,9.33483113,3869.6,3869.5,4.4927]
[1761912730979,0.08083113,3869.6,3869.5,4.4927]
[1761912731282,0.08083113,3869.6,3869.5,4.81844]
[1761912731680,2.2675,3870.0,3869.9,1.1458]
[1761912731978,0.00218979,3870.2,3870.1,1.1458]
[1761912733583,0.33338979,3870.2,3870.1,1.1458]
[1761912734084,0.00218979,3870.2,3870.1,1.1458]
[1761912735181,0.65288979,3870.2,3870.1,1.1458]
[1761912735880,0.33338979,3870.2,3870.1,1.1458]
[1761912736082,0.00218979,3870.2,3870.1,1.1458]
[1761912736678,1.09678979,3870.2,3870.1,1.1458]
[1761912737284,0.00218979,3870.2,3870.1,1.1458]
[1761912737586,1.09678979,3870.2,3870.1,1.1458]
[1761912737888,1.09678979,3870.2,3870.1,0.8187]
[1761912738085,1.0643,3870.0,3869.9,3.9184]
[1761912741797,1.0643,3870.0,3869.9,4.2136]
[1761912742287,0.31038979,3870.2,3870.1,1.0058]
[1761912742791,0.00218979,3870.2,3870.1,1.0058]
[1761912743494,2.2708,3870.5,3870.4,1.0058]
[1761912743495,2.17134108,3870.5,3870.4,1.0058]
[1761912743687,1.07457,3871.3,3870.6,0.4266]
[1761912743992,1.14510206,3871.2,3871.1,0.7106]
[1761912744189,1.14510206,3871.2,3871.1,1.0058]
[1761912744389,1.14510206,3871.2,3871.1,41.8058]
[1761912744390,0.68803338,3871.2,3871.1,41.8058]
[1761912745087,0.68803338,3871.2,3871.1,1.0058]
[1761912745484,1.14703338,3871.2,3871.1,1.0058]
[1761912746188,1.14703338,3871.2,3871.1,0.284]
[1761912746392,0.3082,3871.1,3871.0,0.8912]
[1761912746590,9.24393132,3871.2,3871.1,1.0058]
[1761912746793,9.32473413,3871.2,3871.1,1.0058]
[1761912747293,0.08273413,3871.2,3871.1,1.0058]
[1761912748683,1.14703413,3871.2,3871.1,0.4266]
[1761912748889,0.6053,3871.1,3871.0,1.1864]
[1761912749089,0.08080281,3871.1,3871.0,1.1864]
[1761912749896,0.38900281,3871.1,3871.0,1.1864]
[1761912751297,1.0643,3870.6,3870.5,0.8912]
[1761912751601,1.0643,3870.4,3870.3,3.9184]
[1761912751797,1.14510281,3870.4,3870.3,0.7106]
[1761912751998,1.0643,3870.1,3870.0,0.4266]
[1761912752196,1.0643,3870.0,3869.9,3.2078]
[1761912752496,1.14510281,3870.0,3869.9,3.9184]
[1761912752693,1.14510281,3870.0,3869.9,0.7106]
[1761912753496,0.7561,3869.6,3869.5,0.7106]
[1761912753800,1.0643,3869.3,3869.2,0.7106]
[1761912754000,1.14510281,3869.3,3869.2,1.0058]
[1761912755006,1.0643,3869.1,3869.0,0.42909505]
[1761912755196,10.38110281,3869.1,3869.0,0.42909505]
[1761912755590,10.38110281,3869.1,3869.0,0.00249505]
[1761912757196,10.38010281,3869.1,3869.0,0.00249505]
[1761912757396,10.38110281,3869.1,3869.0,0.00249505]
[1761912757601,10.38010281,3869.1,3869.0,0.00249505]
[1761912758897,10.38010281,3869.1,3869.0,0.68069505]
[1761912759292,10.38010281,3869.1,3869.0,0.26699505]
[1761912759603,10.38010281,3869.1,3869.0,0.00249505]
[1761912760394,10.38010281,3869.1,3869.0,0.68069505]
[1761912760697,10.38010281,3869.1,3869.0,0.00249505]
[1761912762401,10.38010281,3869.1,3869.0,0.67659505]
[1761912763309,1.14510281,3869.1,3869.0,0.67659505]
[1761912763513,0.4254,3868.7,3868.2,0.414]
[1761912763712,0.5389,3868.3,3868.2,0.6741]
[1761912764007,0.61970281,3868.3,3868.2,0.2601]
[1761912764201,0.9643,3868.1,3868.0,40.8]
[1761912764397,0.9643,3867.8,3867.7,0.6741]
[1761912764712,0.9643,3867.8,3867.7,0.67633402]
[1761912765409,0.5389,3867.8,3867.7,0.96113402]
[1761912765822,9.7719,3867.8,3867.7,0.96113402]
[1761912766309,9.7709,3867.8,3867.7,0.96113402]
[1761912766703,0.27994663,3868.1,3868.0,0.5449]
[1761912766906,0.27994663,3868.1,3868.0,1.1162]
[1761912766907,5.38881769,3868.1,3868.0,1.1162]
[1761912767103,5.30794663,3868.1,3868.0,1.1162]
[1761912767310,9.51194663,3868.1,3868.0,1.1162]
[1761912767510,0.2769,3867.8,3867.7,0.54713402]
[1761912767713,0.9643,3867.8,3867.7,0.54713402]
[1761912768108,9.23504663,3868.1,3868.0,0.5449]
[1761912768109,0.00304663,3868.1,3868.0,0.5449]
[1761912768306,0.00304663,3868.1,3868.0,1.1162]
[1761912768706,0.27994663,3868.1,3868.0,1.1162]
[1761912768902,0.54194663,3868.1,3868.0,1.1162]
[1761912769511,0.27994663,3868.1,3868.0,1.1162]
[1761912769908,0.00304663,3868.1,3868.0,1.1162]
[1761912771518,0.27994663,3868.1,3868.0,1.1162]
[1761912772515,0.00304663,3868.1,3868.0,1.1162]
[1761912772818,0.27994663,3868.1,3868.0,1.1162]
[1761912773319,0.96734663,3868.1,3868.0,1.1162]
[1761912773808,0.27994663,3868.1,3868.0,1.1162]
[1761912774117,0.00304663,3868.1,3868.0,1.1162]
[1761912774709,0.00304663,3868.1,3868.0,1.44206]
[1761912775115,0.00304663,3868.1,3868.0,1.1162]
[1761912775316,0.27994663,3868.1,3868.0,1.1162]
[1761912777117,0.5389,3869.1,3869.0,0.7022]
[1761912777323,0.35774619,3869.1,3869.0,0.7022]
[1761912777712,0.35774619,3869.1,3869.0,1.1162]
[1761912778117,0.36088448,3869.1,3869.0,1.1162]
[1761912778419,1.04828448,3869.1,3869.0,1.1162]
[1761912781110,9.84988448,3869.1,3869.0,1.1162]
[1761912781319,10.27528448,3869.1,3869.0,1.1162]
[1761912781819,10.27528448,3869.1,3869.0,0.9589]
[1761912782826,10.27528448,3869.1,3869.0,0.2601]
[1761912783122,0.9643,3868.8,3868.7,0.6741]